fUST/lending_fUST_20250408
["ID","MTS","AMOUNT","RATE_DAILY","PERIOD"]
[357402139,1744044651384,-200.0,0.00027671,7]
[357402140,1744044651393,-500.0,0.00027671,7]
[357402141,1744044651403,-500.0,0.00027671,7]
[357402142,1744044651412,-2976.05,0.00027671,7]
[357402143,1744044651422,-500.0,0.00027671,7]
[357402144,1744044651431,-500.0,0.00027671,7]
[357402145,1744044651441,-500.0,0.00027671,7]
[357402146,1744044651451,-500.0,0.00027671,7]
[357402147,1744044651461,-500.0,0.00027671,7]
[357402148,1744044651471,-500.0,0.00027671,7]
[357402149,1744044651481,-2485.43,0.00027671,7]
[357402150,1744044651491,-500.0,0.00027671,7]
[357402151,1744044651500,-500.0,0.00027671,7]
[357402152,1744044651511,-500.0,0.00027671,7]
[357402153,1744044651521,-542.39,0.00027671,7]
[357402154,1744044651531,-834.75,0.00027671,7]
[357402155,1744044651540,-500.0,0.00027671,7]
[357402156,1744044651551,-154.878818,0.00027671,7]
[357402157,1744044651561,-538.31,0.00027671,7]
[357402158,1744044651572,-500.0,0.00027671,7]
[357402159,1744044651582,-151.0,0.00027671,7]
[357402160,1744044651592,-151.0,0.00027671,2]
[357402161,1744044651603,-500.0,0.00027671,7]
[357402162,1744044651613,-500.0,0.00027671,7]
[357402163,1744044651624,-500.0,0.00027671,7]
[357402164,1744044651637,-151.0,0.00027671,2]
[357402165,1744044651647,-620.02,0.00027671,7]
[357402166,1744044651658,-1147.08,0.00027671,7]
[357402167,1744044651668,-909.34,0.00027671,7]
[357402168,1744044651679,-500.0,0.00027671,7]
[357402169,1744044651690,-547.96,0.00027671,7]
[357402170,1744044651701,-2078.306119,0.00027671,7]
[357402171,1744044651713,-2078.306119,0.00027671,7]
[357402172,1744044651723,-1293.79,0.00027671,7]
[357402173,1744044651733,-500.0,0.00027671,7]
[357402174,1744044651744,-527.03443778,0.00027671,7]
[357402175,1744044651756,-561.57,0.00027671,7]
[357402176,1744044651767,-500.0,0.00027671,7]
[357402177,1744044651778,-500.0,0.00027671,7]
[357402178,1744044651789,-166.95859908,0.00027671,7]
[357402179,1744044651799,-500.0,0.00027671,7]
[357402180,1744044651810,-1416.61,0.00027671,7]
[357402181,1744044651821,-4483.8,0.00027671,7]
[357402182,1744044651831,-500.0,0.00027671,7]
[357402183,1744044651842,-2655.44,0.00027671,7]
[357402184,1744044651852,-3031.77,0.00027671,7]
[357402185,1744044651863,-1464.94,0.00027671,7]
[357402186,1744044651874,-500.0,0.00027671,7]
[357402187,1744044651885,-510.67591356,0.00027671,7]
[357402188,1744044651895,-500.0,0.00027671,7]
[357402189,1744044651905,-621.08648826,0.00027671,7]
[357402190,1744044651916,-2190.06,0.00027671,7]
[357402191,1744044651926,-872.03,0.00027671,7]
[357402192,1744044651936,-500.0,0.00027671,7]
[357402193,1744044651946,-500.0,0.00027671,7]
[357402194,1744044651956,-669.99,0.00027671,7]
[357402195,1744044651966,-894.18,0.00027671,7]
[357402196,1744044651976,-500.0,0.00027671,7]
[357402197,1744044651986,-1790.23,0.00027671,7]
[357402198,1744044651996,-822.87,0.00027671,7]
[357402199,1744044652007,-2477.67,0.00027671,7]
[357402200,1744044652017,-500.0,0.00027671,7]
[357402201,1744044652027,-500.0,0.00027671,7]
[357402202,1744044652037,-1003.07,0.00027671,7]
[357402203,1744044652047,-665.07,0.00027671,7]
[357402204,1744044652058,-500.0,0.00027671,7]
[357402205,1744044652068,-500.0,0.00027671,7]
[357402206,1744044652078,-1679.57,0.00027671,7]
[357402207,1744044652088,-3234.82,0.00027671,2]
[357402208,1744044652098,-392.33396003,0.00027671,7]
[357402209,1744044652108,-511.51,0.00027671,7]
[357402210,1744044652119,-500.0,0.00027671,7]
[357402211,1744044652129,-507.98,0.00027671,7]
[357402212,1744044652139,-500.0,0.00027671,7]
[357402213,1744044652150,-500.0,0.00027671,7]
[357402214,1744044652160,-3088.4,0.00027671,7]
[357402215,1744044652170,-976.77,0.00027671,7]
[357402216,1744044652180,-500.0,0.00027671,7]
[357402217,1744044652190,-3169.0,0.00027671,7]
[357402218,1744044652200,-500.0,0.00027671,7]
[357402219,1744044652210,-500.0,0.00027671,7]
[357402220,1744044652220,-1540.29,0.00027671,7]
[357402221,1744044652231,-2640.64,0.00027671,7]
[357402222,1744044652241,-500.0,0.00027671,7]
[357402223,1744044652251,-500.0,0.00027671,7]
[357402224,1744044652261,-500.0,0.00027671,7]
[357402225,1744044652271,-500.0,0.00027671,7]
[357402226,1744044652281,-500.0,0.00027671,7]
[357402227,1744044652291,-247.03872973,0.00027671,7]
[357402228,1744044652301,-552.20911137,0.00027671,7]
[357402229,1744044652311,-500.0,0.00027671,7]
[357402230,1744044652322,-547.77,0.00027671,7]
[357402231,1744044652332,-500.0,0.00027671,7]
[357402232,1744044652342,-500.0,0.00027671,7]
[357402233,1744044652352,-498.80184552,0.00027671,7]
[357402234,1744044652362,-500.0,0.00027671,7]
[357402235,1744044652372,-383.07493811,0.00027671,7]
[357402236,1744044652383,-500.0,0.00027673,5]
[357402237,1744044652393,-726.468645,0.0002779,2]
[357402238,1744044652403,-257.91778498,0.00027803,2]
[357402239,1744044652413,-500.0,0.00027945,7]
[357402240,1744044652423,-500.0,0.00027945,7]
[357402241,1744044652433,-321.439621,0.00027945,7]
[357402242,1744044652442,-321.439621,0.00027945,7]
[357402243,1744044652452,-321.439621,0.00027945,7]
[357402244,1744044652462,-321.439613,0.00027945,7]
[357402245,1744044652472,-151.0,0.00027945,7]
[357402246,1744044652482,-171.20593,0.00027945,7]
[357402247,1744044652492,-423.16384504,0.00027945,7]
[357402248,1744044652508,-120.60916634,0.00027945,7]
[357402249,1744044652518,-151.0,0.00027945,7]
[357402250,1744044652528,-240.76515055,0.00027945,7]
[357402251,1744044652954,-500.0,0.00027397,7]
[357402252,1744044652964,-159.2907214,0.00027397,7]
[357402253,1744044652977,-343.18108021,0.00027397,7]
[357402254,1744044652987,-501.92872497,0.00027397,7]
[357402255,1744044652997,-500.0,0.00027397,7]
[357402256,1744044653007,-500.0,0.00027671,7]
[357402257,1744044653017,-317.68,0.00027671,7]
[357402258,1744044653027,-259.23484945,0.00027945,7]
[357402259,1744044653037,-624.99899494,0.00027945,7]
[357402260,1744044653047,-500.0,0.00027945,7]
[357402261,1744044653057,-500.0,0.00027945,7]
[357402262,1744044653067,-151.0,0.00027945,7]
[357402263,1744044653078,-151.0,0.00027945,7]
[357402264,1744044653088,-500.0,0.00027945,7]
[357402265,1744044653098,-614.913246,0.00027945,2]
[357402266,1744044653107,-614.913246,0.00027945,2]
[357402267,1744044653117,-614.913246,0.00027945,2]
[357402268,1744044653128,-614.91324,0.00027945,2]
[357402269,1744044653137,-502.48641736,0.00027945,7]
[357402270,1744044653147,-277.456568,0.00027945,7]
[357402271,1744044653157,-277.456568,0.00027945,7]
[357402272,1744044653167,-500.0,0.00027945,7]
[357402273,1744044653176,-500.0,0.00027945,7]
[357402274,1744044653186,-902.42,0.00027945,7]
[357402275,1744044653196,-500.0,0.00027945,7]
[357402276,1744044653206,-500.0,0.00027945,7]
[357402277,1744044653215,-500.0,0.00027945,7]
[357402278,1744044653225,-500.0,0.00027945,7]
[357402279,1744044653236,-505.02370978,0.00027945,7]
[357402280,1744044653246,-502.83001969,0.00027945,7]
[357402281,1744044653256,-500.0,0.00027945,7]
[357402282,1744044653266,-500.0,0.00027945,7]
[357402283,1744044653275,-500.0,0.00027945,7]
[357402284,1744044653285,-959.94,0.00027945,7]
[357402285,1744044653295,-500.0,0.00027945,7]
[357402286,1744044653305,-500.0,0.00027945,7]
[357402287,1744044653315,-500.0,0.00027945,7]
[357402288,1744044653325,-500.0,0.00027945,7]
[357402289,1744044653335,-500.0,0.00027945,7]
[357402290,1744044653346,-500.0,0.00027945,7]
[357402291,1744044653356,-500.0,0.00027945,7]
[357402292,1744044653366,-500.0,0.00027945,7]
[357402293,1744044653377,-500.0,0.00027945,7]
[357402294,1744044653390,-500.0,0.00027945,7]
[357402295,1744044653399,-500.0,0.00027945,7]
[357402296,1744044653409,-500.0,0.00027945,7]
[357402297,1744044653418,-500.0,0.00027945,7]
[357402298,1744044653428,-500.0,0.00027945,7]
[357402299,1744044653439,-500.0,0.00027945,7]
[357402300,1744044653449,-500.0,0.00027945,7]
[357402301,1744044653460,-500.0,0.00027945,7]
[357402302,1744044653470,-500.0,0.00027945,7]
[357402303,1744044653480,-500.0,0.00027945,7]
[357402304,1744044653491,-500.0,0.00027945,7]
[357402305,1744044653501,-500.0,0.00027945,7]
[357402306,1744044653512,-500.0,0.00027945,7]
[357402307,1744044653523,-500.0,0.00027945,7]
[357402308,1744044653534,-500.0,0.00027945,7]
[357402309,1744044653544,-500.0,0.00027945,7]
[357402310,1744044653555,-500.0,0.00027945,7]
[357402311,1744044653565,-500.0,0.00027945,7]
[357402312,1744044653576,-500.0,0.00027945,7]
[357402313,1744044653586,-500.0,0.00027945,7]
[357402314,1744044653597,-500.0,0.00027945,7]
[357402315,1744044653607,-500.0,0.00027945,7]
[357402316,1744044653617,-562.86,0.00027945,7]
[357402317,1744044653627,-500.0,0.00027945,7]
[357402318,1744044653642,-500.0,0.00027945,7]
[357402319,1744044653653,-500.0,0.00027945,7]
[357402320,1744044653663,-500.0,0.00027945,7]
[357402321,1744044653674,-500.0,0.00027945,7]
[357402322,1744044653685,-500.0,0.00027945,7]
[357402323,1744044653695,-500.0,0.00027945,7]
[357402324,1744044653705,-500.0,0.00027945,7]
[357402325,1744044653717,-500.0,0.00027945,7]
[357402326,1744044653728,-516.97351057,0.00027945,7]
[357402327,1744044653738,-500.0,0.00027945,7]
[357402328,1744044653749,-500.0,0.00027945,7]
[357402329,1744044653759,-500.0,0.00027945,7]
[357402330,1744044653770,-500.0,0.00027945,7]
[357402331,1744044653780,-500.0,0.00027945,7]
[357402332,1744044653790,-500.0,0.00027945,7]
[357402333,1744044653801,-231.58147288,0.00027945,7]
[357402334,1744044653811,-737.32,0.00027945,7]
[357402335,1744044653821,-255.38928022,0.00027945,7]
[357402336,1744044653831,-508.37126274,0.00027945,7]
[357402337,1744044653841,-500.0,0.00027945,7]
[357402338,1744044653851,-646.39,0.00027945,7]
[357402339,1744044653861,-500.0,0.00027945,7]
[357402340,1744044653871,-500.0,0.00027945,7]
[357402341,1744044653883,-500.0,0.00027945,7]
[357402342,1744044653894,-500.0,0.00027945,7]
[357402343,1744044653905,-575.96,0.00027945,7]
[357402344,1744044653915,-500.0,0.00027945,7]
[357402345,1744044653926,-500.0,0.00027945,7]
[357402346,1744044653936,-500.0,0.00027945,7]
[357402347,1744044653947,-500.0,0.00027945,7]
[357402348,1744044653957,-500.0,0.00027945,7]
[357402349,1744044653967,-500.0,0.00027945,7]
[357402350,1744044653977,-500.0,0.00027945,7]
[357402351,1744044653988,-500.0,0.00027945,7]
[357402352,1744044654001,-151.0,0.00027945,7]
[357402353,1744044654170,-500.0,0.00027945,7]
[357402354,1744044654190,-500.0,0.00027945,7]
[357402355,1744044654200,-151.0,0.00027945,7]
[357402356,1744044654210,-500.0,0.00027945,7]
[357402357,1744044654220,-500.0,0.00027945,7]
[357402358,1744044654230,-500.0,0.00027945,7]
[357402359,1744044654239,-500.0,0.00027945,7]
[357402360,1744044654248,-151.0,0.00027945,7]
[357402361,1744044654258,-500.0,0.00027945,7]
[357402362,1744044654267,-987.94,0.00027945,7]
[357402363,1744044654277,-711.04,0.00027945,7]
[357402364,1744044654287,-500.0,0.00027945,7]
[357402365,1744044654297,-500.0,0.00027945,7]
[357402366,1744044654306,-500.0,0.00027945,7]
[357402367,1744044654316,-571.82,0.00027945,7]
[357402368,1744044654325,-500.0,0.00027945,7]
[357402369,1744044654334,-500.0,0.00027945,7]
[357402370,1744044654344,-500.0,0.00027945,7]
[357402371,1744044654353,-500.0,0.00027945,7]
[357402372,1744044654362,-536.86,0.00027945,7]
[357402373,1744044654372,-500.0,0.00027945,7]
[357402374,1744044654382,-500.0,0.00027945,7]
[357402375,1744044654391,-661.36,0.00027945,7]
[357402376,1744044654401,-806.25,0.00027945,7]
[357402377,1744044654410,-521.98,0.00027945,7]
[357402378,1744044654420,-500.0,0.00027945,7]
[357402379,1744044654429,-1644.55,0.00027945,7]
[357402380,1744044654439,-500.0,0.00027945,7]
[357402381,1744044654449,-500.0,0.00027945,7]
[357402382,1744044654458,-500.0,0.00027945,7]
[357402383,1744044654468,-500.0,0.00027945,7]
[357402384,1744044654477,-539.67,0.00027945,7]
[357402385,1744044654487,-512.38,0.00027945,7]
[357402386,1744044654496,-2264.06,0.00027945,7]
[357402387,1744044654505,-998.69,0.00027945,7]
[357402388,1744044654515,-302.34527,0.00027945,7]
[357402389,1744044654525,-302.34527,0.00027945,7]
[357402390,1744044654534,-500.0,0.00027945,7]
[357402391,1744044654543,-500.0,0.00027945,7]
[357402392,1744044654552,-500.0,0.00027945,7]
[357402393,1744044654562,-500.0,0.00027945,7]
[357402394,1744044654571,-1059.26,0.00027945,7]
[357402395,1744044654582,-500.0,0.00027945,7]
[357402396,1744044654591,-551.3811868,0.00027945,7]
[357402397,1744044654600,-329.19,0.00027945,7]
[357402398,1744044654610,-500.0,0.00027945,7]
[357402399,1744044654619,-500.0,0.00027945,7]
[357402400,1744044654631,-1028.96,0.00027945,7]
[357402401,1744044654648,-703.33,0.00027945,7]
[357402402,1744044654658,-151.0,0.00027945,7]
[357402403,1744044654668,-320.65412168,0.00027945,7]
[357402404,1744044654680,-526.46,0.00027945,7]
[357402405,1744044654690,-778.5,0.00027945,7]
[357402406,1744044654699,-781.97,0.00027945,7]
[357402407,1744044654710,-640.67476777,0.00027945,7]
[357402408,1744044654720,-500.0,0.00027945,7]
[357402409,1744044654729,-564.50843335,0.00027945,7]
[357402410,1744044654739,-151.0,0.00027945,7]
[357402411,1744044654749,-403.38323468,0.00027945,7]
[357402412,1744044654758,-151.0,0.00027945,7]
[357402413,1744044654767,-561.2406595,0.00027945,7]
[357402414,1744044654776,-500.0,0.00027945,7]
[357402415,1744044654786,-1207.24,0.00027945,7]
[357402416,1744044654795,-500.0,0.00027945,7]
[357402417,1744044654805,-714.57,0.00027945,7]
[357402418,1744044654815,-500.0,0.00027945,7]
[357402419,1744044654824,-500.0,0.00027945,7]
[357402420,1744044654833,-503.1780669,0.00027945,7]
[357402421,1744044654843,-500.0,0.00027945,7]
[357402422,1744044654853,-500.0,0.00027945,7]
[357402423,1744044654862,-500.0,0.00027945,7]
[357402424,1744044654872,-539.89,0.00027945,7]
[357402425,1744044654882,-500.0,0.00027945,7]
[357402426,1744044654892,-500.0,0.00027945,7]
[357402427,1744044654901,-567.41,0.00027945,7]
[357402428,1744044654911,-500.0,0.00027945,7]
[357402429,1744044654919,-578.53,0.00027945,7]
[357402430,1744044654929,-500.0,0.00027945,7]
[357402431,1744044654938,-500.0,0.00027945,7]
[357402432,1744044654947,-500.0,0.00027945,7]
[357402433,1744044654957,-544.74,0.00027945,7]
[357402434,1744044654967,-500.0,0.00027945,7]
[357402435,1744044654978,-500.0,0.00027945,7]
[357402436,1744044654988,-500.0,0.00027945,7]
[357402437,1744044654998,-761.52,0.00027945,7]
[357402438,1744044655008,-500.0,0.00027945,7]
[357402439,1744044655018,-500.0,0.00027945,7]
[357402440,1744044655029,-500.0,0.00027945,7]
[357402441,1744044655039,-847.22,0.00027945,7]
[357402442,1744044655050,-360.003039,0.00027945,7]
[357402443,1744044655060,-360.003039,0.00027945,7]
[357402444,1744044655071,-500.0,0.00027945,7]
[357402445,1744044655081,-1093.63,0.00027945,7]
[357402446,1744044655092,-151.0,0.00027945,7]
[357402447,1744044655101,-151.0,0.00027945,7]
[357402448,1744044655111,-651.94470483,0.00027945,7]
[357402449,1744044655131,-163.47529517,0.00027945,7]
[357402450,1744044655141,-500.0,0.00027945,7]
[357402451,1744044655151,-136.52470483,0.00027945,7]
[357402452,1744044655163,-363.47529517,0.00027945,7]
[357402453,1744044655172,-500.0,0.00027945,7]
[357402454,1744044655181,-506.41357608,0.00027945,7]
[357402455,1744044655190,-253.94236404,0.00027945,7]
[357402456,1744044655201,-1619.2,0.00027945,7]
[357402457,1744044655210,-500.0,0.00027945,7]
[357402458,1744044655219,-500.0,0.00027945,7]
[357402459,1744044655229,-131.96876371,0.00027945,7]
[357402460,1744044655241,-375.93123629,0.00027945,7]
[357402461,1744044655251,-502.81,0.00027945,7]
[357402462,1744044655260,-500.0,0.00027945,7]
[357402463,1744044655269,-500.0,0.00027945,7]
[357402464,1744044655279,-500.0,0.00027945,7]
[357402465,1744044655289,-500.0,0.00027945,7]
[357402466,1744044655298,-500.0,0.00027945,7]
[357402467,1744044655307,-1316.33,0.00027945,7]
[357402468,1744044655317,-1655.22,0.00027945,7]
[357402469,1744044655326,-500.0,0.00027945,7]
[357402470,1744044655336,-820.23,0.00027945,7]
[357402471,1744044655345,-500.0,0.00027945,7]
[357402472,1744044655354,-500.0,0.00027945,7]
[357402473,1744044655364,-1223.76,0.00027945,7]
[357402474,1744044655373,-500.0,0.00027945,7]
[357402475,1744044655384,-500.0,0.00027945,7]
[357402476,1744044655393,-500.0,0.00027945,7]
[357402477,1744044655403,-500.0,0.00027945,7]
[357402478,1744044655413,-500.0,0.00027945,7]
[357402479,1744044655422,-500.0,0.00027945,7]
[357402480,1744044655433,-939.04,0.00027945,7]
[357402481,1744044655442,-500.0,0.00027945,7]
[357402482,1744044655452,-500.0,0.00027945,7]
[357402483,1744044655461,-436.87631173,0.00027945,7]
[357402484,1744044655887,-558.81266653,0.0001823,2]
[357402485,1744044655897,-500.0,0.00024658,2]
[357402486,1744044655907,-500.0,0.00027397,7]
[357402487,1744044655917,-500.0,0.00027397,7]
[357402488,1744044655926,-500.0,0.00027397,7]
[357402489,1744044655936,-500.0,0.00027397,7]
[357402490,1744044655945,-500.0,0.00027397,7]
[357402491,1744044655955,-506.92286281,0.00027397,7]
[357402492,1744044655965,-500.0,0.00027671,7]
[357402493,1744044655974,-582.56,0.00027671,7]
[357402494,1744044655984,-500.0,0.00027671,7]
[357402495,1744044655994,-391.74,0.00027671,7]
[357402496,1744044656003,-63.12368827,0.00027945,7]
[357402497,1744044656012,-513.83406054,0.00027945,7]
[357402498,1744044656022,-500.0,0.00027945,7]
[357402499,1744044656031,-500.0,0.00027945,7]
[357402500,1744044656041,-561.15,0.00027945,7]
[357402501,1744044656050,-500.0,0.00027945,7]
[357402502,1744044656060,-500.0,0.00027945,7]
[357402503,1744044656069,-504.4777407,0.00027945,7]
[357402504,1744044656079,-1722.91,0.00027945,7]
[357402505,1744044656088,-708.02,0.00027945,7]
[357402506,1744044656098,-202.908798,0.00027945,7]
[357402507,1744044656107,-940.12,0.00027945,7]
[357402508,1744044656116,-500.0,0.00027945,7]
[357402509,1744044656125,-565.79,0.00027945,7]
[357402510,1744044656139,-202.908798,0.00027945,7]
[357402511,1744044656149,-500.61,0.00027945,7]
[357402512,1744044656159,-500.0,0.00027945,7]
[357402513,1744044656168,-500.0,0.00027945,7]
[357402514,1744044656178,-2848.17,0.00027945,7]
[357402515,1744044656188,-2186.08,0.00027945,7]
[357402516,1744044656198,-500.0,0.00027945,7]
[357402517,1744044656208,-500.0,0.00027945,7]
[357402518,1744044656217,-500.0,0.00027945,7]
[357402519,1744044656226,-12064.13,0.00027945,7]
[357402520,1744044656236,-563.6,0.00027945,7]
[357402521,1744044656245,-2387.84,0.00027945,7]
[357402522,1744044656255,-500.0,0.00027945,7]
[357402523,1744044656264,-151.0,0.00027945,7]
[357402524,1744044656273,-567.02233215,0.00027945,7]
[357402525,1744044656283,-647.55,0.00027945,7]
[357402526,1744044656292,-2679.334853,0.00027945,7]
[357402527,1744044656302,-151.0,0.00027945,7]
[357402528,1744044656311,-500.0,0.00027945,7]
[357402529,1744044656320,-500.0,0.00027945,7]
[357402530,1744044656330,-500.0,0.00027945,7]
[357402531,1744044656339,-2679.334853,0.00027945,7]
[357402532,1744044656349,-500.0,0.00027945,7]
[357402533,1744044656358,-2455.88667591,0.00027945,7]
[357402534,1744044656389,-500.0,0.00024658,2]
[357402535,1744044656400,-500.0,0.00024658,2]
[357402536,1744044656409,-205.316,0.00027945,7]
[357402537,1744044656422,-292.44732409,0.00027945,7]
[357402538,1744044656431,-500.0,0.00027945,7]
[357402539,1744044656441,-438.47735175,0.00027945,7]
[357402540,1744044656450,-500.0,0.00027945,7]
[357402541,1744044656460,-500.0,0.00027945,7]
[357402542,1744044656470,-185.11271969,0.00027945,7]
[357402543,1744044656482,-314.88728031,0.00027945,7]
[357402544,1744044656492,-492.3011841,0.00027945,7]
[357402545,1744044656507,-500.0,0.00024658,2]
[357402546,1744044656517,-62.7288159,0.00027945,7]
[357402547,1744044656526,-156.77118405,0.00027945,7]
[357402552,1744044851374,370.67257768,0.00022,10]
[357402555,1744045440049,5635.37743976,0.00022,21]
[357402705,1744045846496,-193.12326162,0.0001695,2]
[357402706,1744045846507,-783.64276811,0.0001695,2]
[357402707,1744045846517,-10000.0,0.0001724,2]
[357402708,1744045846527,-2091.04335222,0.00024484,2]
[357402710,1744045846552,-2106.57464412,0.00024484,2]
[357402711,1744045846564,-9952.07068546,0.00024484,2]
[357402712,1744045846573,-193.5998347,0.00024706,2]
[357402713,1744045846583,-1719.2677316,0.00024822,2]
[357402714,1744045846592,-4298.1896571,0.000249,5]
[357402715,1744045846604,-260.61742006,0.000249,5]
[357402716,1744045846614,-6576.22453972,0.00024994,2]
[357402717,1744045846628,-8279.42127039,0.00024994,2]
[357402720,1744045846648,-1951.05769369,0.00024994,2]
[357402722,1744045846658,-419.36665037,0.00026215,2]
[357402723,1744045846668,-425.05,0.00026218,3]
[357402725,1744045846678,-335.11,0.00026218,3]
[357402726,1744045846687,-279.25,0.00026218,3]
[357402727,1744045846696,-837.8,0.00026218,3]
[357402728,1744045846708,-15570.2390686,0.00026218,2]
[357402729,1744045846718,-999.82037264,0.00026227,2]
[357402730,1744045846728,-624.92819811,0.00026227,2]
[357402731,1744045846738,-500.0,0.00026227,2]
[357402732,1744045846748,-500.0,0.00026227,2]
[357402733,1744045846758,-500.0,0.00026227,2]
[357402734,1744045846769,-500.0,0.00026227,2]
[357402735,1744045846780,-500.0,0.00026227,2]
[357402736,1744045846790,-369.67620839,0.00026227,2]
[357402737,1744045846799,-500.0,0.00026227,2]
[357402738,1744045846810,-500.0,0.00026227,2]
[357402739,1744045846819,-500.0,0.00026227,2]
[357402740,1744045846830,-313.3747741,0.00026227,2]
[357402741,1744045846839,-500.0,0.00026227,2]
[357402742,1744045846849,-500.0,0.00026227,2]
[357402743,1744045846859,-500.0,0.00026227,2]
[357402744,1744045846869,-500.0,0.00026227,2]
[357402745,1744045846879,-48565.88814239,0.00026228,2]
[357402746,1744045846890,-160.0,0.00026229,2]
[357402747,1744045846900,-12527.9349248,0.00026229,2]
[357402748,1744045846909,-160.0,0.00026229,2]
[357402749,1744045846919,-152.0,0.00026356,2]
[357402750,1744045846929,-186.51242949,0.00026416,2]
[357402751,1744045846940,-200.0,0.00026502,2]
[357402752,1744045846951,-64776.2756204,0.00026508,2]
[357402753,1744045846966,-59785.6369286,0.00026508,2]
[357402754,1744045846976,-500.0,0.00026517,2]
[357402755,1744045846985,-477.39592215,0.00026517,2]
[357402756,1744045846995,-221572.17110563,0.00026518,2]
[357402757,1744045847007,-350.20199531,0.00026518,2]
[357402758,1744045847038,-4610.36630801,0.00026518,2]
[357402759,1744045847050,-3232.06344795,0.00026518,2]
[357402760,1744045847063,-773.8,0.00026518,2]
[357402762,1744046494371,2081.597,0.00022,10]
[357402766,1744046650363,-180.0,0.00027397,120]
[357402788,1744046929145,1009.012823,0.0002,120]
[357402790,1744046935540,176.77599,0.00013699,2]
[357402844,1744047032492,-2052.6435528,0.000176,2]
[357402846,1744047032503,-300.0,0.00024462,2]
[357402847,1744047032514,-15645.3616504,0.00024463,2]
[357402848,1744047032524,-399.8324253,0.00024697,2]
[357402849,1744047032534,-188.2108827,0.00024779,2]
[357402850,1744047032544,-250.0,0.00024867,2]
[357402851,1744047032555,-234.3344554,0.00025119,2]
[357402852,1744047032565,-199.18593029,0.00025471,2]
[357402853,1744047032575,-357.00107003,0.00025528,2]
[357402854,1744047032585,-179.01,0.00025561,2]
[357402855,1744047032595,-5066.74511817,0.000259,6]
[357402856,1744047032606,-41736.56547828,0.00025946,2]
[357402857,1744047032616,-183.8727597,0.00025946,2]
[357402858,1744047032627,-1000.35268559,0.00025999,2]
[357402859,1744047032639,-160.0,0.00026011,2]
[357402861,1744047032649,-12527.9349248,0.00026011,2]
[357402863,1744047032659,-160.0,0.00026011,2]
[357402865,1744047032669,-419.36665037,0.00026011,2]
[357402866,1744047032679,-160.0,0.00026011,2]
[357402867,1744047032689,-1225.79033608,0.00026211,2]
[357402869,1744047032699,-193.02630373,0.00026317,2]
[357402871,1744047032709,-75.79734083,0.00026398,3]
[357402873,1744047032722,-317.84265917,0.00026398,3]
[357402875,1744047032734,-196.82,0.00026398,3]
[357402877,1744047032744,-590.5,0.00026398,3]
[357402879,1744047032754,-200.0,0.00026402,2]
[357402880,1744047032765,-7477.93734084,0.00026407,2]
[357402881,1744047032787,-1058.7216521,0.00026407,2]
[357402908,1744047038908,-201.48608601,0.00026407,2]
[357402909,1744047038918,-500.0,0.00026407,2]
[357402910,1744047038928,-500.0,0.00026407,2]
[357402911,1744047038938,-500.0,0.00026407,2]
[357402912,1744047038947,-500.0,0.00026407,2]
[357402913,1744047038957,-469.706649,0.00026407,2]